[Event "FIDE Grand Swiss 2023"]
[Site "Villa Marina, Douglas, Isle of Man, Isle Of Man"]
[Date "2023.11.05"]
[Round "11.33"]
[White "Svane, Frederik"]
[Black "Sadhwani, Raunak"]
[Result "1/2-1/2"]
[TimeControl "40/90 + 30 + 30s/move"]
[WhiteFideId "12923044"]
[BlackFideId "35093487"]
[WhiteElo "2626"]
[BlackElo "2641"]

1. e4 {[%clk 01:40:42]} {[%emt 00:00:16]} e5 {[%clk 01:40:57]} {[%emt
00:00:04]} 2. Nf3 {[%clk 01:41:02]} {[%emt 00:00:10]} Nc6 {[%clk 01:41:22]}
{[%emt 00:00:05]} 3. Bc4 {[%clk 01:41:26]} {[%emt 00:00:06]} Bc5 {[%clk
01:41:47]} {[%emt 00:00:05]} 4. c3 {[%clk 01:41:49]} {[%emt 00:00:06]} Nf6
{[%clk 01:42:13]} {[%emt 00:00:04]} 5. d3 {[%clk 01:42:15]} {[%emt 00:00:05]}
d6 {[%clk 01:42:35]} {[%emt 00:00:09]} 6. O-O {[%clk 01:41:35]} {[%emt
00:01:09]} O-O {[%clk 01:42:55]} {[%emt 00:00:10]} 7. Bg5 {[%clk 01:39:52]}
{[%emt 00:02:13]} h6 {[%clk 01:43:01]} {[%emt 00:00:25]} 8. Bh4 {[%clk
01:40:07]} {[%emt 00:00:14]} a5 {[%clk 01:43:02]} {[%emt 00:00:30]} 9. Nbd2
{[%clk 01:39:10]} {[%emt 00:01:26]} Ba7 {[%clk 01:43:04]} {[%emt 00:00:28]} 10.
a3 {[%emt 00:02:54]} g5 {[%clk 01:38:19]} {[%emt 00:05:13]} 11. Bg3 {[%clk
01:36:19]} {[%emt 00:00:58]} Nh7 {[%clk 01:35:39]} {[%emt 00:03:11]} 12. Kh1
{[%clk 01:34:52]} {[%emt 00:01:57]} Kh8 {[%clk 01:30:08]} {[%emt 00:06:01]} 13.
b4 {[%clk 01:31:38]} {[%emt 00:03:43]} h5 {[%clk 01:12:53]} {[%emt 00:17:46]}
14. b5 {[%clk 01:27:52]} {[%emt 00:04:15]} Nb8 {[%clk 01:01:51]} {[%emt
00:11:33]} 15. h4 {[%clk 01:24:55]} {[%emt 00:03:27]} f6 {[%clk 01:01:04]}
{[%emt 00:01:17]} 16. hxg5 {[%clk 01:14:43]} {[%emt 00:10:42]} fxg5 {[%clk
01:01:15]} {[%emt 00:00:18]} 17. Nxe5 {[%clk 01:14:16]} {[%emt 00:00:58]} Qe8
{[%clk 00:56:41]} {[%emt 00:05:04]} 18. Nef3 {[%clk 01:11:07]} {[%emt
00:03:39]} h4 {[%clk 00:56:36]} {[%emt 00:00:35]} 19. Bh2 {[%clk 01:10:01]}
{[%emt 00:01:35]} Nd7 {[%clk 00:46:00]} {[%emt 00:11:07]} 20. d4 {[%clk
00:58:50]} {[%emt 00:11:41]} Qh5 {[%clk 00:45:32]} {[%emt 00:00:58]} 21. Ne1
{[%clk 00:39:39]} {[%emt 00:19:41]} g4 {[%clk 00:45:44]} {[%emt 00:00:18]} 22.
Be2 {[%clk 00:37:31]} {[%emt 00:02:37]} Ndf6 {[%clk 00:43:48]} {[%emt
00:02:27]} 23. Nd3 {[%clk 00:37:32]} {[%emt 00:00:28]} Ng5 {[%clk 00:33:07]}
{[%emt 00:11:11]} 24. e5 {[%clk 00:09:16]} {[%emt 00:28:46]} Nfe4 {[%clk
00:31:54]} {[%emt 00:01:44]} 25. exd6 {[%clk 00:09:14]} {[%emt 00:00:32]} cxd6
{[%clk 00:30:56]} {[%emt 00:01:28]} 26. Nf4 {[%clk 00:08:25]} {[%emt 00:01:19]}
Qh6 {[%clk 00:29:37]} {[%emt 00:01:50]} 27. Bd3 {[%clk 00:07:01]} {[%emt
00:01:53]} g3 {[%clk 00:18:22]} {[%emt 00:11:45]} 28. Nxe4 {[%clk 00:07:04]}
{[%emt 00:00:27]} Nxe4 {[%clk 00:17:48]} {[%emt 00:01:04]} 29. fxg3 {[%clk
00:06:57]} {[%emt 00:00:36]} hxg3 {[%clk 00:17:53]} {[%emt 00:00:26]} 30. Qh5
{[%clk 00:07:00]} {[%emt 00:00:26]} Qxh5 {[%clk 00:16:58]} {[%emt 00:01:26]} 31.
Nxh5 {[%clk 00:07:29]} {[%emt 00:00:01]} Nf2+ {[%clk 00:16:31]} {[%emt
00:00:57]} 32. Rxf2 {[%clk 00:07:34]} {[%emt 00:00:25]} gxf2 {[%clk 00:16:45]}
{[%emt 00:00:15]} 33. Rf1 {[%clk 00:04:58]} {[%emt 00:03:06]} Bg4 {[%clk
00:08:30]} {[%emt 00:08:45]} 34. Nf4 {[%clk 00:04:56]} {[%emt 00:00:31]} Kg7
{[%clk 00:08:08]} {[%emt 00:00:54]} 35. Rxf2 {[%clk 00:05:15]} {[%emt
00:00:10]} Rac8 {[%clk 00:07:55]} {[%emt 00:00:43]} 36. Be2 {[%clk 00:03:37]}
{[%emt 00:02:09]} Bd7 {[%clk 00:03:26]} {[%emt 00:04:59]} 37. Nh5+ {[%clk
00:03:26]} {[%emt 00:00:41]} Kg6 {[%clk 00:01:07]} {[%emt 00:02:48]} 38. Rxf8
{[%clk 00:03:53]} {[%emt 00:00:04]} Rxf8 {[%clk 00:01:33]} {[%emt 00:00:03]} 39.
Bxd6 {[%clk 00:04:15]} {[%emt 00:00:08]} Rh8 {[%clk 00:01:13]} {[%emt
00:00:50]} 40. g4 {[%clk 00:04:38]} {[%emt 00:00:07]} Bb8 {[%clk 00:01:00]}
{[%emt 00:00:43]} 41. Bxb8 {[%clk 00:40:47]} {[%emt 00:14:21]} Rxb8 {[%clk
00:51:09]} {[%emt 00:00:21]} 42. Kg2 {[%clk 00:26:36]} {[%emt 00:14:42]} Kg5
{[%clk 00:47:34]} {[%emt 00:04:04]} 43. Ng3 {[%clk 00:25:37]} {[%emt 00:01:29]}
Bxg4 {[%clk 00:47:04]} {[%emt 00:01:00]} 44. Kf2 {[%clk 00:24:44]} {[%emt
00:01:23]} Re8 {[%clk 00:44:02]} {[%emt 00:03:32]} 45. c4 {[%clk 00:21:00]}
{[%emt 00:04:15]} Kf4 {[%clk 00:42:25]} {[%emt 00:02:06]} 46. Bxg4 {[%clk
00:20:32]} {[%emt 00:00:58]} Kxg4 {[%clk 00:42:54]} {[%emt 00:00:02]} 47. Ne2
{[%clk 00:20:45]} {[%emt 00:00:17]} Rf8+ {[%clk 00:41:11]} {[%emt 00:02:13]} 48.
Ke3 {[%clk 00:21:02]} {[%emt 00:00:12]} Rf3+ {[%clk 00:41:35]} {[%emt
00:00:07]} 49. Ke4 {[%clk 00:19:38]} {[%emt 00:01:54]} Rxa3 {[%clk 00:41:37]}
{[%emt 00:00:28]} 50. c5 {[%emt 00:01:48]} Ra2 {[%emt 00:08:55]} 51. Nc3 {[%clk
00:11:30]} Ra3 {[%clk 00:40:15]} {[%emt 00:00:46]} 52. Kd3 {[%clk 00:04:38]}
{[%emt 00:07:23]} Kf5 {[%clk 00:38:58]} {[%emt 00:01:47]} 53. Kc2 {[%clk
00:03:06]} {[%emt 00:02:02]} a4 {[%clk 00:36:30]} {[%emt 00:02:58]} 54. c6
{[%clk 00:03:19]} {[%emt 00:00:17]} bxc6 {[%clk 00:36:53]} {[%emt 00:00:06]} 55.
bxc6 {[%emt 00:00:04]} Ke6 {[%clk 00:37:15]} {[%emt 00:00:07]} 56. d5+ {[%clk
00:04:12]} {[%emt 00:00:05]} Ke7 {[%clk 00:37:39]} {[%emt 00:00:05]} 57. Nb5
{[%clk 00:02:27]} {[%emt 00:02:15]} Rh3 {[%clk 00:36:45]} {[%emt 00:01:24]} 58.
d6+ {[%clk 00:02:50]} {[%emt 00:00:06]} Ke6 {[%clk 00:37:07]} {[%emt 00:00:09]}
59. c7 {[%clk 00:01:13]} {[%emt 00:02:08]} Kd7 {[%clk 00:37:02]} {[%emt
00:00:35]} 60. Na7 {[%clk 00:01:34]} {[%emt 00:00:08]} Rh8 {[%clk 00:37:29]}
{[%emt 00:00:04]} 61. c8=Q+ {[%clk 00:01:59]} {[%emt 00:00:05]} Rxc8+ {[%clk
00:37:55]} {[%emt 00:00:03]} 62. Nxc8 {[%clk 00:02:25]} {[%emt 00:00:04]} Kxc8
{[%clk 00:38:22]} {[%emt 00:00:03]} 63. Kb2 {[%clk 00:02:51]} {[%emt 00:00:05]}
Kd7 {[%clk 00:38:49]} {[%emt 00:00:03]} 64. Ka3 {[%clk 00:03:17]} {[%emt
00:00:03]} Kxd6 {[%clk 00:39:15]} {[%emt 00:00:04]} 65. Kxa4 {[%clk 00:03:43]}
{[%emt 00:00:04]} Ke5 {[%clk 00:39:11]} {[%emt 00:00:02]} 1/2-1/2

[Event "FIDE Grand Swiss 2023"]
[Site "Villa Marina, Douglas, Isle of Man, Isle Of Man"]
[Date "2023.11.05"]
[Round "11.34"]
[White "Bachmann, Axel"]
[Black "Mamedov, Rauf"]
[Result "0-1"]
[TimeControl "40/90 + 30 + 30s/move"]
[WhiteFideId "3700488"]
[BlackFideId "13401653"]
[WhiteElo "2604"]
[BlackElo "2640"]

1. d4 {[%clk 01:40:32]} {[%emt 00:00:28]} d5 {[%clk 01:40:57]} {[%emt
00:00:04]} 2. c4 {[%clk 01:40:19]} {[%emt 00:00:42]} c6 {[%clk 01:41:23]}
{[%emt 00:00:04]} 3. Nf3 {[%clk 01:38:29]} {[%emt 00:02:20]} Nf6 {[%clk
01:41:14]} {[%emt 00:00:39]} 4. e3 {[%clk 01:38:55]} {[%emt 00:00:04]} Bg4
{[%clk 01:41:27]} {[%emt 00:00:17]} 5. h3 {[%clk 01:37:51]} {[%emt 00:01:34]}
Bh5 {[%clk 01:41:38]} {[%emt 00:00:18]} 6. Nc3 {[%clk 01:37:17]} {[%emt
00:01:04]} e6 {[%clk 01:40:39]} {[%emt 00:01:29]} 7. g4 {[%clk 01:33:35]}
{[%emt 00:04:12]} Bg6 {[%clk 01:40:39]} {[%emt 00:00:30]} 8. Ne5 {[%clk
01:34:02]} {[%emt 00:00:04]} Nbd7 {[%clk 01:40:44]} {[%emt 00:00:25]} 9. Nxg6
{[%clk 01:33:51]} {[%emt 00:00:41]} hxg6 {[%clk 01:39:05]} {[%emt 00:02:09]} 10.
Bd2 {[%clk 01:21:30]} {[%emt 00:12:51]} Bb4 {[%clk 01:24:25]} {[%emt 00:15:10]}
11. Bd3 {[%clk 01:20:57]} {[%emt 00:01:02]} dxc4 {[%clk 01:18:00]} {[%emt
00:06:56]} 12. Bxc4 {[%clk 01:20:25]} {[%emt 00:01:01]} Qe7 {[%clk 01:18:27]}
{[%emt 00:00:03]} 13. Qf3 {[%clk 01:11:18]} {[%emt 00:09:37]} Nd5 {[%clk
01:03:40]} {[%emt 00:15:18]} 14. Bb3 {[%clk 01:03:32]} {[%emt 00:08:16]} O-O-O
{[%clk 00:53:33]} {[%emt 00:10:38]} 15. e4 {[%clk 00:56:36]} {[%emt 00:07:24]}
Nc7 {[%clk 00:51:43]} {[%emt 00:02:20]} 16. O-O-O {[%clk 00:49:17]} {[%emt
00:07:49]} e5 {[%clk 00:39:19]} {[%emt 00:12:55]} 17. d5 {[%clk 00:31:42]}
{[%emt 00:18:05]} Nc5 {[%clk 00:39:17]} {[%emt 00:00:32]} 18. Bc4 {[%clk
00:29:38]} {[%emt 00:02:33]} Bxc3 {[%clk 00:37:09]} {[%emt 00:02:38]} 19. Bxc3
{[%clk 00:29:04]} {[%emt 00:01:04]} cxd5 {[%clk 00:37:33]} {[%emt 00:00:06]} 20.
exd5 {[%clk 00:29:04]} {[%emt 00:00:30]} Na4 {[%clk 00:37:55]} {[%emt
00:00:09]} 21. Rhe1 {[%clk 00:20:15]} {[%emt 00:09:18]} f6 {[%clk 00:29:44]}
{[%emt 00:08:42]} 22. Re3 {[%clk 00:08:46]} {[%emt 00:11:59]} Kb8 {[%clk
00:26:45]} {[%emt 00:03:29]} 23. Red3 {[%clk 00:06:45]} {[%emt 00:02:30]} Nxc3
{[%clk 00:22:28]} {[%emt 00:04:48]} 24. d6 {[%clk 00:06:47]} {[%emt 00:00:28]}
Rxd6 {[%clk 00:22:55]} {[%emt 00:00:03]} 25. Rxd6 {[%clk 00:07:09]} {[%emt
00:00:08]} Nxd1 {[%clk 00:23:22]} {[%emt 00:00:03]} 26. Qxd1 {[%clk 00:07:30]}
{[%emt 00:00:08]} a6 {[%clk 00:18:43]} {[%emt 00:05:09]} 27. Bf1 {[%clk
00:05:39]} {[%emt 00:02:21]} Ne6 {[%clk 00:14:50]} {[%emt 00:04:23]} 28. Rd7
{[%clk 00:05:43]} {[%emt 00:00:26]} Rc8+ {[%clk 00:09:53]} {[%emt 00:05:27]} 29.
Kb1 {[%clk 00:06:04]} {[%emt 00:00:09]} Rd8 {[%clk 00:10:15]} {[%emt 00:00:09]}
30. Rxd8+ {[%clk 00:06:29]} {[%emt 00:00:05]} Nxd8 {[%clk 00:09:48]} {[%emt
00:00:56]} 31. Qd5 {[%clk 00:05:54]} {[%emt 00:01:05]} Ne6 {[%clk 00:08:58]}
{[%emt 00:01:20]} 32. a3 {[%clk 00:05:54]} {[%emt 00:00:31]} Nf4 {[%clk
00:08:55]} {[%emt 00:00:33]} 33. Qb3 {[%clk 00:05:29]} {[%emt 00:00:54]} Qd6
{[%clk 00:08:21]} {[%emt 00:01:05]} 34. h4 {[%clk 00:03:45]} {[%emt 00:02:14]}
Ka7 {[%clk 00:08:41]} {[%emt 00:00:10]} 35. Ka2 {[%clk 00:02:57]} {[%emt
00:01:17]} Qd4 {[%clk 00:07:58]} {[%emt 00:01:13]} 36. f3 {[%clk 00:01:38]}
{[%emt 00:01:49]} f5 {[%clk 00:05:46]} {[%emt 00:02:43]} 37. gxf5 {[%clk
00:00:59]} {[%emt 00:01:09]} gxf5 {[%clk 00:06:12]} {[%emt 00:00:03]} 38. Qc2
{[%clk 00:00:43]} {[%emt 00:00:46]} g6 {[%clk 00:03:28]} {[%emt 00:03:15]} 39.
Bc4 {[%clk 00:00:48]} {[%emt 00:00:25]} e4 {[%clk 00:02:49]} {[%emt 00:01:09]}
40. fxe4 {[%clk 00:01:03]} {[%emt 00:00:14]} fxe4 {[%clk 00:03:17]} {[%emt
00:00:03]} 41. Kb1 {[%clk 00:49:56]} {[%emt 00:01:37]} e3 {[%clk 00:52:19]}
{[%emt 00:01:28]} 42. Bf1 {[%clk 00:43:24]} {[%emt 00:07:02]} Kb8 {[%clk
00:49:39]} {[%emt 00:03:10]} 43. Kc1 {[%clk 00:41:25]} {[%emt 00:02:28]} Qd8
{[%clk 00:47:21]} {[%emt 00:02:48]} 44. Qh2 {[%clk 00:38:57]} {[%emt 00:02:59]}
Qd6 {[%clk 00:47:02]} {[%emt 00:00:48]} 45. Kc2 {[%clk 00:39:15]} {[%emt
00:00:12]} Ka8 {[%clk 00:46:51]} {[%emt 00:00:41]} 46. Bc4 {[%clk 00:37:58]}
{[%emt 00:01:47]} Qd4 {[%clk 00:47:07]} {[%emt 00:00:14]} 47. Kb3 {[%clk
00:37:54]} {[%emt 00:00:34]} e2 {[%clk 00:46:49]} {[%emt 00:00:49]} 0-1

[Event "FIDE Grand Swiss 2023"]
[Site "Villa Marina, Douglas, Isle of Man, Isle Of Man"]
[Date "2023.11.05"]
[Round "11.35"]
[White "Suleymanli, Aydin"]
[Black "Van Foreest, Jorden"]
[Result "1/2-1/2"]
[TimeControl "40/90 + 30 + 30s/move"]
[WhiteFideId "13413937"]
[BlackFideId "1039784"]
[WhiteElo "2588"]
[BlackElo "2707"]

1. e4 {[%clk 01:40:56]} {[%emt 00:00:03]} e5 {[%clk 01:40:52]} {[%emt
00:00:07]} 2. Nf3 {[%clk 01:41:21]} {[%emt 00:00:06]} Nc6 {[%clk 01:41:16]}
{[%emt 00:00:06]} 3. Bb5 {[%clk 01:41:41]} {[%emt 00:00:10]} Nf6 {[%clk
01:41:31]} {[%emt 00:00:14]} 4. O-O {[%clk 01:41:11]} {[%emt 00:01:01]} Nxe4
{[%clk 01:41:43]} {[%emt 00:00:17]} 5. Re1 {[%clk 01:41:37]} {[%emt 00:00:05]}
Nd6 {[%clk 01:42:04]} {[%emt 00:00:09]} 6. Nxe5 {[%clk 01:42:02]} {[%emt
00:00:05]} Be7 {[%clk 01:42:27]} {[%emt 00:00:07]} 7. Bf1 {[%clk 01:42:24]}
{[%emt 00:00:08]} Nf5 {[%clk 01:42:34]} {[%emt 00:00:22]} 8. Nf3 {[%clk
01:42:28]} {[%emt 00:00:27]} O-O {[%clk 01:42:36]} {[%emt 00:00:28]} 9. d4
{[%clk 01:42:49]} {[%emt 00:00:09]} d5 {[%clk 01:43:01]} {[%emt 00:00:05]} 10.
c3 {[%clk 01:41:35]} {[%emt 00:01:44]} Bd6 {[%clk 01:43:18]} {[%emt 00:00:13]}
11. g3 {[%clk 01:41:39]} {[%emt 00:00:25]} h6 {[%clk 01:40:15]} {[%emt
00:03:34]} 12. a4 {[%clk 01:32:37]} {[%emt 00:09:33]} Re8 {[%clk 01:38:31]}
{[%emt 00:02:13]} 13. Bg2 {[%clk 01:31:42]} {[%emt 00:01:25]} Bf8 {[%clk
01:31:42]} {[%emt 00:07:20]} 14. Rxe8 {[%clk 01:22:22]} {[%emt 00:09:49]} Qxe8
{[%clk 01:32:05]} {[%emt 00:00:07]} 15. Ne1 {[%clk 01:22:08]} {[%emt 00:00:43]}
Nce7 {[%clk 01:28:04]} {[%emt 00:04:31]} 16. Nd3 {[%clk 01:18:52]} {[%emt
00:03:46]} a5 {[%clk 01:25:47]} {[%emt 00:02:48]} 17. h4 {[%clk 01:09:01]}
{[%emt 00:10:21]} c6 {[%clk 01:23:07]} {[%emt 00:03:10]} 18. Qf3 {[%clk
01:02:32]} {[%emt 00:06:58]} Nd6 {[%clk 01:16:37]} {[%emt 00:07:00]} 19. Bf4
{[%clk 01:01:37]} {[%emt 00:01:25]} Ng6 {[%clk 01:14:12]} {[%emt 00:02:56]} 20.
Bxd6 {[%clk 01:01:25]} {[%emt 00:00:42]} Bxd6 {[%clk 01:13:38]} {[%emt
00:01:04]} 21. Nd2 {[%clk 01:01:20]} {[%emt 00:00:34]} Qd8 {[%clk 01:06:19]}
{[%emt 00:07:50]} 22. Re1 {[%clk 01:00:20]} {[%emt 00:01:30]} Nf8 {[%clk
01:05:55]} {[%emt 00:00:54]} 23. Nf1 {[%clk 00:58:19]} {[%emt 00:02:31]} Be6
{[%clk 01:03:47]} {[%emt 00:02:39]} 24. Ne3 {[%clk 00:56:01]} {[%emt 00:02:47]}
Qd7 {[%clk 01:02:54]} {[%emt 00:01:23]} 25. Nf4 {[%clk 00:55:25]} {[%emt
00:01:05]} Bxf4 {[%clk 01:00:17]} {[%emt 00:03:07]} 26. Qxf4 {[%clk 00:54:22]}
{[%emt 00:01:34]} Re8 {[%clk 01:00:38]} {[%emt 00:00:10]} 27. Nf1 {[%clk
00:53:20]} {[%emt 00:01:30]} Ng6 {[%clk 00:58:37]} {[%emt 00:02:32]} 28. Qd2
{[%clk 00:53:44]} {[%emt 00:00:06]} Ne7 {[%clk 00:58:16]} {[%emt 00:00:51]} 29.
Ne3 {[%clk 00:53:16]} {[%emt 00:00:58]} Nc8 {[%clk 00:57:41]} {[%emt 00:01:05]}
30. b3 {[%clk 00:39:56]} {[%emt 00:13:50]} Nd6 {[%clk 00:57:51]} {[%emt
00:00:19]} 31. Qc1 {[%clk 00:37:55]} {[%emt 00:02:32]} Qd8 {[%clk 00:55:57]}
{[%emt 00:02:24]} 32. Rd1 {[%clk 00:36:20]} {[%emt 00:02:05]} Nf5 {[%clk
00:55:22]} {[%emt 00:01:05]} 33. Nxf5 {[%clk 00:25:49]} {[%emt 00:11:01]} Bxf5
{[%clk 00:55:08]} {[%emt 00:00:43]} 34. c4 {[%clk 00:26:13]} {[%emt 00:00:07]}
Be4 {[%clk 00:49:49]} {[%emt 00:05:49]} 35. Qc3 {[%clk 00:23:59]} {[%emt
00:02:44]} g5 {[%clk 00:47:41]} {[%emt 00:02:37]} 36. hxg5 {[%clk 00:23:27]}
{[%emt 00:01:03]} hxg5 {[%clk 00:47:56]} {[%emt 00:00:15]} 37. Re1 {[%clk
00:20:53]} {[%emt 00:03:04]} Bxg2 {[%clk 00:47:01]} {[%emt 00:01:25]} 38. Rxe8+
{[%clk 00:18:16]} {[%emt 00:03:06]} Qxe8 {[%clk 00:47:27]} {[%emt 00:00:05]} 39.
Kxg2 {[%clk 00:18:40]} {[%emt 00:00:06]} Qe4+ {[%clk 00:47:54]} {[%emt
00:00:03]} 40. Kg1 {[%clk 00:17:30]} {[%emt 00:01:40]} Kg7 {[%clk 00:48:04]}
{[%emt 00:00:21]} 41. cxd5 {[%clk 00:12:41]} {[%emt 00:05:18]} cxd5 {[%clk
00:47:09]} {[%emt 00:01:25]} 42. Qxa5 {[%clk 00:09:54]} {[%emt 00:03:17]} Qxd4
{[%clk 00:42:05]} {[%emt 00:05:34]} 43. Qd8 {[%clk 00:08:37]} {[%emt 00:01:47]}
Qd2 {[%clk 00:40:49]} {[%emt 00:01:46]} 44. a5 {[%clk 00:07:10]} {[%emt
00:01:57]} d4 {[%clk 00:40:55]} {[%emt 00:00:23]} 45. b4 {[%clk 00:05:21]}
{[%emt 00:02:19]} Qe1+ {[%clk 00:39:35]} {[%emt 00:01:50]} 46. Kg2 {[%clk
00:05:26]} {[%emt 00:00:26]} Qe4+ {[%clk 00:40:00]} {[%emt 00:00:05]} 47. Kg1
{[%clk 00:04:12]} {[%emt 00:01:43]} f6 {[%clk 00:39:58]} {[%emt 00:00:32]} 48.
b5 {[%clk 00:03:43]} {[%emt 00:01:00]} d3 {[%clk 00:38:05]} {[%emt 00:02:23]}
49. a6 {[%clk 00:02:00]} {[%emt 00:02:13]} bxa6 {[%clk 00:37:29]} {[%emt
00:01:06]} 1/2-1/2

[Event "FIDE Grand Swiss 2023"]
[Site "Villa Marina, Douglas, Isle of Man, Isle Of Man"]
[Date "2023.11.05"]
[Round "11.36"]
[White "Martirosyan, Haik M."]
[Black "Durarbayli, Vasif"]
[Result "1/2-1/2"]
[TimeControl "40/90 + 30 + 30s/move"]
[WhiteFideId "13306553"]
[BlackFideId "13402935"]
[WhiteElo "2696"]
[BlackElo "2625"]

1. d4 {[%clk 01:40:56]} {[%emt 00:00:04]} d5 {[%clk 01:40:26]} {[%emt
00:00:34]} 2. c4 {[%clk 01:41:07]} {[%emt 00:00:20]} c6 {[%clk 01:39:58]}
{[%emt 00:00:58]} 3. Nf3 {[%clk 01:41:20]} {[%emt 00:00:17]} Nf6 {[%clk
01:39:33]} {[%emt 00:00:55]} 4. Nc3 {[%clk 01:41:31]} {[%emt 00:00:19]} e6
{[%clk 01:38:52]} {[%emt 00:01:11]} 5. Bg5 {[%clk 01:41:42]} {[%emt 00:00:18]}
h6 {[%clk 01:38:31]} {[%emt 00:00:51]} 6. Bxf6 {[%clk 01:42:04]} {[%emt
00:00:08]} Qxf6 {[%clk 01:37:58]} {[%emt 00:01:03]} 7. e3 {[%clk 01:42:25]}
{[%emt 00:00:09]} g6 {[%clk 01:37:42]} {[%emt 00:00:46]} 8. Bd3 {[%clk
01:42:17]} {[%emt 00:00:38]} Bg7 {[%clk 01:36:51]} {[%emt 00:01:21]} 9. O-O
{[%clk 01:42:19]} {[%emt 00:00:28]} O-O {[%clk 01:36:26]} {[%emt 00:00:55]} 10.
e4 {[%clk 01:41:34]} {[%emt 00:01:16]} Qd8 {[%clk 01:35:40]} {[%emt 00:01:16]}
11. e5 {[%clk 01:40:21]} {[%emt 00:01:42]} c5 {[%clk 01:35:15]} {[%emt
00:00:55]} 12. dxc5 {[%clk 01:39:24]} {[%emt 00:01:27]} dxc4 {[%clk 01:34:48]}
{[%emt 00:00:57]} 13. Bxc4 {[%clk 01:39:36]} {[%emt 00:00:18]} Nd7 {[%clk
01:34:13]} {[%emt 00:01:06]} 14. Qe2 {[%clk 01:38:57]} {[%emt 00:01:09]} Nxc5
{[%clk 01:33:42]} {[%emt 00:01:01]} 15. Rad1 {[%clk 01:38:49]} {[%emt
00:00:37]} Qe7 {[%clk 01:33:18]} {[%emt 00:00:54]} 16. Qe3 {[%clk 01:38:04]}
{[%emt 00:01:15]} a6 {[%clk 01:22:41]} {[%emt 00:11:07]} 17. Rd6 {[%clk
01:29:55]} {[%emt 00:08:39]} b5 {[%clk 01:17:31]} {[%emt 00:05:41]} 18. Be2
{[%clk 01:23:02]} {[%emt 00:07:22]} Qa7 {[%clk 01:07:59]} {[%emt 00:10:02]} 19.
Qf4 {[%clk 01:12:00]} {[%emt 00:11:32]} Bb7 {[%clk 01:00:15]} {[%emt 00:08:14]}
20. Rfd1 {[%clk 01:09:26]} {[%emt 00:03:05]} Rac8 {[%clk 00:55:30]} {[%emt
00:05:15]} 21. a3 {[%clk 01:02:22]} {[%emt 00:07:33]} Qa8 {[%clk 00:51:48]}
{[%emt 00:04:13]} 22. Ne1 {[%clk 00:56:26]} {[%emt 00:06:25]} Ne4 {[%clk
00:43:32]} {[%emt 00:08:46]} 23. Nxe4 {[%clk 00:56:35]} {[%emt 00:00:22]} Bxe4
{[%clk 00:43:05]} {[%emt 00:00:57]} 24. Bf3 {[%clk 00:56:25]} {[%emt 00:00:40]}
Rc4 {[%clk 00:42:05]} {[%emt 00:01:30]} 25. R6d4 {[%clk 00:56:00]} {[%emt
00:00:54]} Bxf3 {[%clk 00:38:21]} {[%emt 00:04:14]} 26. Nxf3 {[%clk 00:56:18]}
{[%emt 00:00:12]} Rc2 {[%clk 00:38:18]} {[%emt 00:00:33]} 27. R4d2 {[%clk
00:53:06]} {[%emt 00:03:42]} Qc6 {[%clk 00:37:30]} {[%emt 00:01:18]} 28. h4
{[%clk 00:51:52]} {[%emt 00:01:45]} Rxd2 {[%clk 00:36:52]} {[%emt 00:01:08]} 29.
Rxd2 {[%clk 00:51:00]} {[%emt 00:01:22]} a5 {[%clk 00:34:56]} {[%emt 00:02:26]}
30. Kh2 {[%clk 00:45:17]} {[%emt 00:06:13]} Rc8 {[%clk 00:34:15]} {[%emt
00:01:10]} 31. Rd6 {[%clk 00:43:47]} {[%emt 00:01:59]} Qc2 {[%clk 00:33:23]}
{[%emt 00:01:23]} 32. Rd2 {[%clk 00:27:01]} {[%emt 00:17:16]} Qb1 {[%clk
00:29:46]} {[%emt 00:04:06]} 33. Kg3 {[%clk 00:20:59]} {[%emt 00:06:33]} a4
{[%clk 00:27:44]} {[%emt 00:02:33]} 34. Rd7 {[%clk 00:19:23]} {[%emt 00:02:05]}
Qf5 {[%clk 00:27:02]} {[%emt 00:01:12]} 35. Rb7 {[%clk 00:18:41]} {[%emt
00:01:12]} Rc5 {[%clk 00:17:07]} {[%emt 00:10:25]} 36. Rb8+ {[%clk 00:19:01]}
{[%emt 00:00:10]} Kh7 {[%clk 00:17:31]} {[%emt 00:00:06]} 37. Rb7 {[%clk
00:18:51]} {[%emt 00:00:40]} Kg8 {[%clk 00:17:53]} {[%emt 00:00:08]} 1/2-1/2